bitfinex/quotes_BTCUSD_20240918
["timestamp","ask_amount","ask_price","bid_price","bid_amount"]
[1726673675282,1.39815109,59572.0,59571.0,0.0002]
[1726673675721,1.39815109,59572.0,59571.0,0.0032]
[1726673677161,1.42448935,59572.0,59571.0,0.0002]
[1726673677398,1.42948935,59572.0,59571.0,0.0002]
[1726673677651,1.38233447,59572.0,59571.0,0.0002]
[1726673677905,1.4295501,59572.0,59571.0,0.0002]
[1726673678142,1.42954223,59572.0,59571.0,0.0002]
[1726673678434,1.42454223,59572.0,59571.0,0.0002]
[1726673678658,1.42954223,59572.0,59571.0,0.0002]
[1726673679767,1.42954223,59572.0,59571.0,0.001021]
[1726673680659,1.40320397,59572.0,59571.0,0.001021]
[1726673682361,1.42954124,59572.0,59571.0,0.001021]
[1726673682820,1.40320397,59572.0,59571.0,0.001021]
[1726673683046,1.71633305,59572.0,59571.0,0.001021]
[1726673683292,2.29936105,59572.0,59571.0,0.001021]
[1726673683528,1.330086,59570.0,59565.0,0.000821]
[1726673683749,1.84608643,59570.0,59565.0,0.000821]
[1726673683976,1.86796007,59570.0,59565.0,0.000821]
[1726673684194,1.88614619,59570.0,59565.0,0.000821]
[1726673684415,1.85614619,59570.0,59565.0,0.000821]
[1726673684663,1.83314619,59570.0,59565.0,0.000821]
[1726673684876,1.83314619,59570.0,59569.0,0.004176]
[1726673684877,1.84714619,59570.0,59569.0,0.004176]
[1726673685315,1.49740719,59570.0,59569.0,0.003176]
[1726673685533,1.41140719,59570.0,59569.0,0.004176]
[1726673686489,1.39740719,59570.0,59569.0,0.003176]
[1726673687841,1.84314619,59570.0,59569.0,0.004176]
[1726673688304,1.88614619,59570.0,59569.0,0.003176]
[1726673688542,1.89114619,59570.0,59569.0,0.003176]
[1726673688764,1.83314619,59570.0,59569.0,0.003176]
[1726673689213,1.84314619,59570.0,59569.0,0.004176]
[1726673689459,1.83314619,59570.0,59569.0,0.003176]
[1726673689908,1.84614619,59570.0,59569.0,0.004176]
[1726673690369,1.07266819,59570.0,59569.0,0.004176]
[1726673690594,1.40840719,59570.0,59569.0,0.004176]
[1726673690823,1.3793094,59570.0,59569.0,0.004176]
[1726673691044,1.41030516,59570.0,59569.0,0.004176]
[1726673691290,1.73311693,59570.0,59569.0,0.003176]
[1726673691508,1.40637793,59570.0,59569.0,0.004176]
[1726673691975,1.40637793,59570.0,59569.0,0.003176]
[1726673691976,1.39737793,59570.0,59569.0,0.003176]
[1726673692235,1.06163893,59570.0,59569.0,0.003997]
[1726673692471,0.72389993,59570.0,59569.0,0.003997]
[1726673692704,1.0305704,59570.0,59569.0,0.003997]
[1726673692936,1.0395704,59570.0,59569.0,0.004997]
[1726673693159,1.0305704,59570.0,59569.0,0.003997]
[1726673693382,0.67664528,59570.0,59569.0,0.003997]
[1726673693728,0.69466994,59570.0,59569.0,0.003997]
[1726673694889,0.69666994,59570.0,59569.0,0.003997]
[1726673695536,1.06128426,59570.0,59569.0,0.003997]
[1726673696011,1.06328426,59570.0,59569.0,0.003997]
[1726673696499,1.01638428,59570.0,59569.0,0.003997]
[1726673699871,1.01438428,59570.0,59569.0,0.003997]
[1726673700322,0.01198361,59570.0,59569.0,0.171869]
[1726673700518,0.01198361,59570.0,59569.0,0.507614]
[1726673700725,0.002,59570.0,59569.0,1.179104]
[1726673700928,0.0019,59570.0,59569.0,1.680791]
[1726673701132,0.0019,59570.0,59569.0,1.34215767]
[1726673701589,0.001642,59571.0,59570.0,0.839347]
[1726673701999,0.001642,59571.0,59569.0,0.339742]
[1726673702000,0.001642,59571.0,59569.0,0.013997]
[1726673702422,0.16469567,59571.0,59569.0,0.003997]
[1726673702631,0.17900052,59570.0,59569.0,0.015997]
[1726673702879,1.01353219,59570.0,59569.0,0.015997]
[1726673703084,1.01453219,59570.0,59569.0,0.003997]
[1726673703282,1.01253219,59570.0,59569.0,0.003997]
[1726673703701,1.09483219,59570.0,59569.0,0.003997]
[1726673703940,1.43057119,59570.0,59569.0,0.003997]
[1726673704375,1.43057119,59570.0,59569.0,0.015997]
[1726673704580,1.43057119,59570.0,59569.0,0.003997]
[1726673704787,1.43257119,59570.0,59569.0,0.003997]
[1726673704995,1.09983219,59570.0,59569.0,0.003997]
[1726673705423,1.09683219,59570.0,59569.0,0.003997]
[1726673705843,0.17518519,59570.0,59569.0,0.003997]
[1726673706052,0.01177352,59570.0,59569.0,0.003997]
[1726673706915,0.01177352,59570.0,59569.0,0.171869]
[1726673707400,0.01177352,59570.0,59569.0,0.843359]
[1726673707615,0.01177352,59570.0,59569.0,1.179104]
[1726673707616,0.01277352,59570.0,59569.0,1.179104]
[1726673707852,0.001642,59570.0,59569.0,0.843359]
[1726673708302,0.002642,59570.0,59569.0,0.852359]
[1726673708975,0.002642,59570.0,59569.0,1.188104]
[1726673710075,0.002642,59570.0,59569.0,0.852359]
[1726673712212,0.002642,59570.0,59569.0,1.188104]
[1726673712430,0.002642,59570.0,59569.0,1.288104]
[1726673712645,0.002542,59570.0,59569.0,2.850252]
[1726673712891,0.335631,59590.0,59569.0,2.850252]
[1726673712892,0.71769826,59585.0,59584.0,0.50349]
[1726673713102,0.71769826,59585.0,59584.0,0.9952755]
[1726673713103,0.47615236,59585.0,59584.0,0.9952755]
[1726673713319,0.47615236,59585.0,59584.0,1.3309355]
[1726673713320,0.47605236,59585.0,59584.0,1.3309355]
[1726673713533,0.01025236,59585.0,59584.0,1.40628173]
[1726673713743,0.01025236,59585.0,59584.0,1.43135022]
[1726673713964,0.002,59590.0,59584.0,0.10045816]
[1726673714200,0.335627,59590.0,59587.0,0.05022905]
[1726673714422,0.01038855,59589.0,59586.0,0.05022905]
[1726673714677,0.17820555,59589.0,59585.0,0.21805505]
[1726673715197,0.167835,59583.0,59579.0,0.05022905]
[1726673715455,0.167836,59582.0,59579.0,0.167843]
[1726673715711,0.001,59585.0,59584.0,0.34966]
[1726673715989,0.001,59585.0,59584.0,0.6736155]
[1726673716241,0.001,59585.0,59584.0,1.08710649]
[1726673716497,0.001642,59593.0,59588.0,0.335637]
[1726673716799,0.169447,59593.0,59590.0,0.167811]
[1726673717237,0.169447,59593.0,59582.0,0.05022905]
[1726673717238,0.003642,59593.0,59582.0,0.335671]
[1726673717469,0.167817,59589.0,59585.0,0.167825]
[1726673717710,0.003642,59593.0,59584.0,0.335659]
[1726673717711,0.167809,59592.0,59584.0,0.335659]
[1726673717928,0.001642,59593.0,59591.0,0.16781]
[1726673718155,0.001642,59593.0,59589.0,0.335629]
[1726673718380,0.001642,59593.0,59591.0,0.167808]
[1726673718619,0.001642,59593.0,59583.0,0.335661]
[1726673718620,0.001642,59593.0,59586.0,0.335643]
[1726673718871,0.001642,59593.0,59587.0,0.33564]
[1726673719107,0.001642,59593.0,59588.0,0.335633]
[1726673719532,0.001642,59593.0,59590.0,0.167811]
[1726673720012,0.001642,59593.0,59591.0,0.167809]
[1726673720529,0.001642,59593.0,59586.0,0.343647]
[1726673720791,0.001642,59593.0,59591.0,0.167808]
[1726673721296,0.167811,59591.0,59586.0,0.343644]
[1726673721554,0.337252,59593.0,59588.0,0.167818]
[1726673721810,0.001642,59593.0,59588.0,0.167817]
[1726673722070,0.167808,59592.0,59588.0,0.167818]
[1726673722320,0.170449,59593.0,59588.0,0.175818]
[1726673722597,0.16569567,59593.0,59588.0,0.008]
[1726673722862,0.503448,59589.0,59588.0,0.008]
[1726673723132,0.503448,59589.0,59579.0,0.335686]
[1726673723133,0.335642,59588.0,59582.0,0.167834]
[1726673723357,0.167823,59587.0,59583.0,0.167832]
[1726673723610,0.167831,59584.0,59579.0,0.335686]
[1726673723875,0.67129,59587.0,59579.0,0.335686]
[1726673723876,0.167822,59587.0,59583.0,0.167831]
[1726673724387,0.167818,59589.0,59585.0,0.167826]
[1726673724862,0.50030567,59593.0,59584.0,0.33566]
[1726673725113,0.50030567,59593.0,59586.0,0.167823]
[1726673725114,0.01048388,59588.0,59586.0,0.167823]
[1726673725355,0.01046358,59587.0,59586.0,0.167823]
[1726673725612,0.01046358,59587.0,59586.0,0.503472]
[1726673725869,0.16781,59592.0,59588.0,0.167818]
[1726673726365,0.16781,59592.0,59589.0,0.167815]
[1726673726609,0.001642,59593.0,59589.0,0.56958449]
[1726673726862,0.001642,59593.0,59592.0,0.503422]
[1726673727107,0.001642,59593.0,59592.0,0.167807]
[1726673727392,0.001642,59593.0,59589.0,0.23395649]
[1726673727393,0.001642,59593.0,59589.0,0.335628]
[1726673727627,0.001642,59593.0,59586.0,0.01]
[1726673727628,0.003642,59593.0,59586.0,0.01]
[1726673727879,0.16782,59588.0,59586.0,0.01]
[1726673728114,0.335622,59591.0,59586.0,0.01]
[1726673728378,0.337255,59593.0,59588.0,0.167817]
[1726673728629,0.001642,59593.0,59589.0,0.172815]
[1726673728891,0.167808,59592.0,59589.0,0.172815]
[1726673729143,0.169447,59593.0,59587.0,0.335642]
[1726673729383,0.167808,59592.0,59589.0,0.167814]
[1726673730107,0.167808,59592.0,59589.0,0.174814]
[1726673730347,0.167808,59592.0,59589.0,0.167814]
[1726673730589,0.169448,59593.0,59590.0,0.167813]
[1726673730829,0.169448,59593.0,59585.0,0.23477649]
[1726673730830,0.001642,59593.0,59588.0,0.335634]
[1726673731096,0.001642,59593.0,59592.0,0.167807]
[1726673731358,0.001642,59593.0,59592.0,0.839037]
[1726673732346,0.002642,59593.0,59592.0,0.839037]
[1726673732599,0.001642,59593.0,59592.0,0.839037]
[1726673733102,0.002642,59593.0,59592.0,0.846037]
[1726673733888,0.001642,59593.0,59592.0,0.839037]
[1726673734624,0.002642,59593.0,59592.0,0.849037]
[1726673735577,0.002642,59593.0,59592.0,1.184652]
[1726673735816,0.002642,59593.0,59592.0,1.34770567]
[1726673736067,0.002642,59593.0,59592.0,1.33770567]
[1726673736068,0.001642,59593.0,59592.0,1.33770567]
[1726673736320,0.002642,59593.0,59592.0,2.26513167]
[1726673736602,0.001442,59600.0,59599.0,0.93894]
[1726673736838,0.001442,59600.0,59599.0,1.92902967]
[1726673737062,0.001442,59600.0,59599.0,1.59345367]
[1726673737761,0.001342,59600.0,59599.0,1.59345367]
[1726673739367,0.001342,59600.0,59599.0,1.60745367]
[1726673739368,0.002342,59600.0,59599.0,1.60745367]
[1726673739595,0.001342,59600.0,59599.0,1.59345367]
[1726673739850,0.001342,59600.0,59599.0,1.92902967]
[1726673740068,0.001342,59600.0,59599.0,1.94302967]
[1726673740316,0.001342,59600.0,59599.0,1.92902967]
[1726673740541,0.00154,59613.0,59612.0,0.323635]
[1726673740777,0.00154,59613.0,59612.0,0.994639]
[1726673741000,0.01228691,59613.0,59612.0,0.994639]
[1726673741224,0.00154,59613.0,59612.0,0.994639]
[1726673741919,0.00154,59613.0,59612.0,0.659137]
[1726673742157,0.01228691,59613.0,59612.0,0.659137]
[1726673742394,0.01228691,59613.0,59612.0,0.994639]
[1726673742395,0.00154,59613.0,59612.0,0.994639]
[1726673743409,0.00254,59613.0,59612.0,1.01652483]
[1726673743861,0.00254,59613.0,59612.0,0.671137]
[1726673744097,0.00254,59613.0,59612.0,0.335635]
[1726673744810,0.01528691,59613.0,59612.0,0.167884]
[1726673745030,0.00254,59613.0,59612.0,0.179751]
[1726673745249,0.01328691,59613.0,59612.0,0.179751]
[1726673745493,0.00254,59613.0,59612.0,0.179751]
[1726673745760,0.01328691,59613.0,59612.0,0.179751]
[1726673746023,0.00254,59613.0,59612.0,0.179751]
[1726673746248,0.00254,59613.0,59612.0,0.335635]
[1726673746709,0.00254,59613.0,59612.0,1.006639]
[1726673747416,0.00254,59613.0,59612.0,0.671137]
[1726673748086,0.01328691,59613.0,59612.0,0.671137]
[1726673748310,0.00454,59613.0,59612.0,0.671137]
[1726673748532,0.01528691,59613.0,59612.0,0.167884]
[1726673749004,0.18303491,59613.0,59612.0,0.012]
[1726673749248,0.61303191,59613.0,59612.0,0.012]
[1726673749476,0.94852891,59613.0,59612.0,0.012]
[1726673749708,0.97751383,59613.0,59612.0,0.012]
[1726673750587,0.97751383,59613.0,59605.0,0.167771]
[1726673750588,0.002,59608.0,59605.0,0.167771]
[1726673750804,0.002,59607.0,59605.0,0.167771]
[1726673751025,0.01313897,59607.0,59605.0,0.167771]
[1726673751248,0.265789,59613.0,59604.0,0.155884]
[1726673751471,0.265789,59613.0,59602.0,0.335555]
[1726673751472,0.01113897,59606.0,59605.0,0.167771]
[1726673751697,0.02907278,59612.0,59611.0,0.167754]
[1726673751928,0.00154,59613.0,59612.0,0.323635]
[1726673752155,0.01263505,59613.0,59612.0,0.323635]
[1726673752631,0.01263505,59613.0,59612.0,0.155884]
[1726673752875,0.01263505,59613.0,59608.0,0.155884]
[1726673753368,0.18038305,59613.0,59612.0,0.003]
[1726673753601,0.167757,59610.0,59604.0,0.156704]
[1726673753835,0.002,59609.0,59606.0,0.167768]
[1726673754071,0.002,59607.0,59606.0,0.167768]
[1726673754325,0.002,59609.0,59606.0,0.167765]
[1726673754574,0.02912958,59608.0,59606.0,0.167765]
[1726673754830,0.002,59611.0,59608.0,0.167761]
[1726673755068,0.169755,59611.0,59608.0,0.155884]
[1726673755326,0.02911639,59610.0,59608.0,0.491407]
[1726673755586,0.18238605,59613.0,59611.0,0.167752]
[1726673755587,0.01263505,59613.0,59611.0,0.167752]
[1726673755832,0.02911362,59612.0,59609.0,0.167759]
[1726673756083,0.02911362,59611.0,59609.0,0.167759]
[1726673756837,0.01263505,59613.0,59612.0,0.167751]
[1726673757094,0.01263505,59613.0,59612.0,0.659137]
[1726673757095,0.03081279,59613.0,59612.0,0.659137]
[1726673757352,0.05989718,59613.0,59612.0,0.323635]
[1726673758695,0.05982745,59613.0,59612.0,0.323635]
[1726673758912,0.05982745,59613.0,59608.0,0.3456365]
[1726673758913,0.05982747,59613.0,59608.0,0.155884]
[1726673759202,0.04167654,59613.0,59612.0,0.167751]
[1726673759501,0.05984142,59613.0,59612.0,0.323635]
[1726673759721,0.03079135,59613.0,59612.0,0.49768867]
[1726673760013,0.01263505,59613.0,59612.0,0.49768867]
[1726673760252,0.01263505,59613.0,59612.0,0.48668867]
[1726673760997,0.01263505,59613.0,59612.0,1.15769267]
[1726673761229,0.01263505,59613.0,59612.0,1.49319467]
[1726673761464,0.01263505,59613.0,59612.0,1.59319467]
[1726673762158,0.01263505,59613.0,59612.0,1.094639]
[1726673762392,0.0307744,59613.0,59612.0,1.094639]
[1726673762849,0.0307744,59613.0,59612.0,1.106639]
[1726673763087,0.0307744,59613.0,59612.0,1.442141]
[1726673763324,0.0307744,59613.0,59612.0,1.106639]
[1726673763548,0.0307744,59613.0,59612.0,0.771137]
[1726673763993,0.0307744,59613.0,59612.0,0.671137]
[1726673764215,0.04189836,59613.0,59612.0,0.671137]
[1726673764439,0.04189836,59613.0,59612.0,1.006639]
[1726673764895,0.0307744,59613.0,59612.0,1.342141]
[1726673765126,0.0307744,59613.0,59612.0,1.342961]
[1726673765808,0.0307744,59613.0,59612.0,1.007459]
[1726673766266,0.0307744,59613.0,59612.0,0.168704]
[1726673766494,0.05980805,59613.0,59612.0,0.01282]
[1726673766714,0.05980805,59613.0,59612.0,0.336455]
[1726673766932,0.05980805,59613.0,59612.0,0.671957]
[1726673767405,0.07108112,59613.0,59612.0,0.671957]
[1726673767655,0.07101743,59613.0,59612.0,1.007459]
[1726673767851,0.07101743,59613.0,59612.0,0.671957]
[1726673768100,0.05974436,59613.0,59612.0,0.671957]
[1726673768722,0.07101743,59613.0,59612.0,0.671957]
[1726673768986,0.07101743,59613.0,59612.0,0.336455]
[1726673769438,0.57426243,59613.0,59612.0,0.01282]
[1726673769655,0.66526243,59613.0,59612.0,0.01282]
[1726673769887,1.4993101,59613.0,59612.0,0.01282]
[1726673770128,1.1638131,59613.0,59612.0,0.01282]
[1726673770659,1.11670379,59613.0,59612.0,0.01282]
[1726673770927,1.163943,59613.0,59612.0,0.01282]
[1726673771166,1.48127107,59613.0,59612.0,0.00082]
[1726673771411,1.50043826,59613.0,59612.0,0.00082]
[1726673771897,1.49943826,59613.0,59612.0,0.00082]
[1726673772152,1.16394126,59613.0,59612.0,0.00082]
[1726673773072,0.66539059,59613.0,59612.0,0.00082]
[1726673774182,0.95365012,59613.0,59612.0,0.00082]
[1726673774416,1.16379871,59613.0,59612.0,0.00082]
[1726673774641,1.83479271,59613.0,59612.0,0.00082]
[1726673774874,1.83479271,59613.0,59612.0,0.00582]
[1726673775094,1.83479271,59613.0,59612.0,0.00082]
[1726673775568,1.91399271,59613.0,59612.0,0.00082]
[1726673777316,1.91399271,59613.0,59604.0,0.00082]
[1726673777317,1.266297,59605.0,59604.0,0.00082]
[1726673777587,1.43135067,59605.0,59604.0,0.00082]
[1726673777882,1.48992507,59605.0,59604.0,0.00082]
[1726673778112,1.82546707,59605.0,59604.0,0.00082]
[1726673778669,1.82546707,59605.0,59585.0,0.168645]
[1726673778670,0.167824,59586.0,59585.0,0.00082]
[1726673778895,1.12460774,59586.0,59585.0,0.00082]
[1726673779158,1.137429,59586.0,59585.0,0.00082]
[1726673779395,1.473078,59586.0,59585.0,0.00082]
[1726673779637,1.721062,59586.0,59585.0,0.00082]
[1726673780117,1.565178,59586.0,59585.0,0.00082]
[1726673780339,0.505608,59570.0,59565.0,0.000821]
[1726673780562,0.5218511,59570.0,59565.0,0.000821]
[1726673780787,0.53242925,59570.0,59565.0,0.000821]
[1726673781454,0.51420993,59570.0,59565.0,0.000821]
[1726673782126,0.01060193,59570.0,59568.0,0.167874]
[1726673782368,0.01060193,59570.0,59565.0,0.000821]
[1726673782369,0.51620993,59570.0,59565.0,0.000821]
[1726673782592,0.51620993,59570.0,59569.0,0.008997]
[1726673782819,0.85194893,59570.0,59569.0,0.008997]
[1726673783532,0.503643,59566.0,59565.0,0.000821]
[1726673783755,1.38754924,59566.0,59565.0,0.000821]
[1726673783998,1.49356054,59566.0,59565.0,0.000821]
[1726673784239,1.49355715,59566.0,59565.0,0.000821]
[1726673784479,1.82931915,59566.0,59565.0,0.000821]
[1726673785379,1.83231915,59566.0,59565.0,0.000821]
[1726673785630,1.82931915,59566.0,59565.0,0.000821]
[1726673786080,1.83431915,59566.0,59565.0,0.001821]
[1726673786312,1.82931915,59566.0,59565.0,0.000821]
[1726673786548,1.85566163,59566.0,59565.0,0.000821]
[1726673787211,1.82653844,59566.0,59565.0,0.000821]
[1726673787443,1.82663923,59566.0,59565.0,0.000821]
[1726673787682,1.85592369,59566.0,59565.0,0.000821]
[1726673787908,1.86792369,59566.0,59565.0,0.001821]
[1726673788145,1.19639969,59566.0,59565.0,0.001821]
[1726673788366,1.15511523,59566.0,59565.0,0.000821]
[1726673788601,1.45523197,59566.0,59565.0,0.001821]
[1726673789081,1.46453709,59566.0,59565.0,0.000821]
[1726673789310,1.47353709,59566.0,59565.0,0.001821]
[1726673789558,1.46453709,59566.0,59565.0,0.000821]
[1726673790005,1.46853709,59566.0,59565.0,0.000821]
[1726673790932,0.77670797,59566.0,59565.0,0.000821]
[1726673791160,1.11446997,59566.0,59565.0,0.000821]
[1726673791647,0.77870797,59566.0,59565.0,0.000821]
[1726673791866,0.17526497,59566.0,59565.0,0.000821]
[1726673792096,0.34314597,59566.0,59565.0,0.000821]
[1726673792740,0.67890797,59566.0,59565.0,0.000821]
[1726673793427,0.68090797,59566.0,59565.0,0.000821]
[1726673793652,0.0122113,59566.0,59565.0,0.168704]
[1726673793875,0.0122113,59566.0,59565.0,0.73863676]
[1726673794099,0.002,59566.0,59565.0,1.07440376]
[1726673794331,0.002,59566.0,59565.0,1.41017076]
[1726673794778,0.635638,59581.0,59577.0,0.167849]
[1726673794995,0.4678,59581.0,59577.0,0.335696]
[1726673795213,0.4678,59581.0,59574.0,0.23416576]
[1726673795214,0.01004186,59580.0,59569.0,0.56990576]
[1726673795482,0.01004186,59580.0,59570.0,0.335735]
[1726673795483,0.335696,59578.0,59570.0,0.335735]
[1726673795702,0.002,59578.0,59565.0,0.002821]
[1726673795979,0.002,59578.0,59574.0,0.167855]
[1726673796201,0.01004186,59577.0,59576.0,0.167852]
[1726673796675,0.63085367,59581.0,59580.0,0.167841]
[1726673796676,0.003,59581.0,59580.0,0.167841]
[1726673796897,0.003,59581.0,59580.0,1.07337276]
[1726673797119,0.003,59581.0,59580.0,1.40905576]
[1726673798018,0.002,59589.0,59583.0,0.335665]
[1726673798238,0.335622,59591.0,59585.0,0.167826]
[1726673798239,0.002,59588.0,59585.0,0.167826]
[1726673798907,0.001,59581.0,59580.0,0.014]
[1726673799137,0.001,59581.0,59580.0,0.517524]
[1726673799366,0.002,59585.0,59580.0,0.335683]
[1726673799617,0.002,59585.0,59584.0,0.16783]
[1726673799841,0.002,59585.0,59577.0,0.167848]
[1726673799842,0.002,59581.0,59577.0,0.167848]
[1726673800065,0.335627,59590.0,59565.0,0.030821]
[1726673800066,0.167857,59575.0,59569.0,0.335741]
[1726673800292,0.167867,59571.0,59565.0,0.23498676]
[1726673800516,0.167867,59571.0,59567.0,0.167877]
[1726673800517,0.002,59571.0,59567.0,0.167877]
[1726673800739,0.169869,59571.0,59567.0,0.167877]
[1726673800929,0.00872044,59570.0,59566.0,0.167879]
[1726673801181,0.00872044,59570.0,59569.0,0.167872]
[1726673801399,0.002,59573.0,59569.0,0.335745]
[1726673801618,0.002,59575.0,59572.0,0.167863]
[1726673801835,0.002,59575.0,59570.0,0.335738]
[1726673801836,0.01828461,59574.0,59570.0,0.335738]
[1726673802052,0.01828461,59573.0,59571.0,0.167866]
[1726673802268,0.01828461,59572.0,59571.0,0.167866]
[1726673802489,0.18614715,59572.0,59568.0,0.167874]
[1726673802719,0.18614715,59572.0,59569.0,0.009]
[1726673802720,0.002,59570.0,59569.0,0.009]
[1726673802944,0.841347,59570.0,59569.0,0.009]
[1726673803171,0.841347,59570.0,59565.0,0.000821]
[1726673803172,0.002,59567.0,59565.0,0.000821]
[1726673803397,0.16988,59567.0,59565.0,0.000821]
[1726673803619,0.18616352,59566.0,59565.0,0.000821]
[1726673804045,0.01828252,59566.0,59565.0,0.000821]
[1726673804503,0.01828252,59566.0,59565.0,0.336588]
[1726673804729,0.01828252,59566.0,59565.0,0.840238]
[1726673805177,0.167847,59578.0,59574.0,0.167857]
[1726673805409,0.04731688,59577.0,59574.0,0.167857]
[1726673805629,0.04731688,59577.0,59576.0,0.40201776]
[1726673805847,0.01823575,59577.0,59576.0,0.73772276]
[1726673806300,0.04741296,59577.0,59576.0,0.73772276]
[1726673806516,0.01823575,59577.0,59576.0,0.73772276]
[1726673806732,0.04741296,59577.0,59576.0,0.73772276]
[1726673806944,0.02677333,59577.0,59576.0,0.73772276]
[1726673807595,0.05595054,59577.0,59576.0,0.73772276]
[1726673808044,0.05595054,59577.0,59575.0,0.335711]
[1726673808259,0.05595054,59577.0,59576.0,0.503557]
[1726673808260,0.00853758,59577.0,59576.0,0.503557]
[1726673808570,0.0182284,59577.0,59576.0,0.503557]
[1726673808742,0.02776598,59577.0,59576.0,0.011]
[1726673808967,0.05593142,59577.0,59574.0,0.335716]
[1726673809182,0.00853758,59577.0,59576.0,0.167852]
[1726673809408,0.02778107,59577.0,59575.0,0.006]
[1726673809627,0.002,59579.0,59576.0,0.167852]
[1726673809851,0.04742129,59578.0,59574.0,0.335712]
[1726673810070,0.335707,59576.0,59568.0,0.33575]
[1726673810298,0.167859,59574.0,59570.0,0.167868]
[1726673810520,0.16305367,59578.0,59565.0,0.57075176]
[1726673810521,0.16787,59570.0,59565.0,0.57075176]
[1726673810738,0.04941813,59569.0,59565.0,0.000821]
[1726673810957,0.002,59567.0,59565.0,0.168704]
[1726673811229,0.335739,59571.0,59565.0,0.168704]
[1726673811230,0.01823896,59566.0,59565.0,0.168703]
[1726673811466,0.01823896,59566.0,59565.0,1.07440276]
[1726673811712,0.01823896,59566.0,59565.0,1.41016976]
[1726673811943,0.16985,59577.0,59565.0,0.58475376]
[1726673812162,0.21528567,59576.0,59572.0,0.167862]
[1726673812390,0.21528567,59576.0,59568.0,0.33575]
[1726673812391,0.04743167,59575.0,59570.0,0.335733]
[1726673812604,0.04743167,59574.0,59570.0,0.23416576]
[1726673812827,0.04743167,59573.0,59572.0,0.167864]
[1726673813053,0.04743167,59573.0,59572.0,0.503592]
[1726673813286,0.01824295,59573.0,59572.0,1.175048]
[1726673813532,0.001642,59577.0,59576.0,0.335705]
[1726673813779,0.01983456,59577.0,59576.0,0.839262]
[1726673813998,0.01983456,59577.0,59576.0,0.503557]
[1726673814232,0.04894266,59577.0,59573.0,0.335717]
[1726673814461,0.001642,59577.0,59576.0,0.167852]
[1726673814651,0.01974208,59577.0,59576.0,0.503557]
[1726673814933,0.001642,59577.0,59576.0,0.503557]
[1726673815156,0.04870278,59577.0,59576.0,0.839262]
[1726673815391,0.04870278,59577.0,59576.0,1.174967]
[1726673815651,0.0197423,59577.0,59576.0,1.174967]
[1726673816109,0.0197423,59577.0,59576.0,1.184967]
[1726673816110,0.0207423,59577.0,59576.0,1.184967]
[1726673816331,0.0207423,59577.0,59576.0,1.207967]
[1726673816548,0.0217423,59577.0,59576.0,1.221967]
[1726673816997,0.0197423,59577.0,59576.0,1.197967]
[1726673817450,0.0197423,59577.0,59576.0,1.91682567]
[1726673817933,0.001642,59577.0,59576.0,2.04182784]
[1726673818148,0.001642,59577.0,59576.0,1.91682567]
[1726673818370,0.002642,59577.0,59576.0,1.93082567]
[1726673818611,0.001542,59581.0,59580.0,0.556524]
[1726673818854,0.001542,59581.0,59580.0,1.38942643]
[1726673819067,0.001542,59581.0,59580.0,3.06045243]
[1726673819282,0.001542,59581.0,59580.0,3.09408243]
[1726673819947,0.001542,59581.0,59580.0,2.87192743]
[1726673820181,0.001542,59581.0,59580.0,2.48212867]
[1726673820397,0.001542,59581.0,59580.0,1.86025667]
[1726673820626,0.001542,59581.0,59580.0,1.49457367]
[1726673820627,0.001442,59581.0,59580.0,1.49457367]
[1726673820852,0.001442,59581.0,59580.0,1.30852]
[1726673821586,0.001442,59581.0,59580.0,1.40871423]
[1726673822260,0.001442,59581.0,59580.0,1.27489]
[1726673822487,0.001342,59581.0,59580.0,2.17388243]
[1726673822717,0.4658,59598.0,59597.0,0.838967]
[1726673822946,0.0787,59607.0,59603.0,0.167776]
[1726673823188,0.0787,59607.0,59597.0,0.40195776]
[1726673823189,0.00902084,59598.0,59597.0,0.40195776]
[1726673823434,0.28494876,59604.0,59597.0,0.335587]
[1726673823663,0.002,59609.0,59602.0,0.23416576]
[1726673823885,0.01807679,59608.0,59607.0,0.167765]
[1726673824102,0.01797679,59608.0,59607.0,0.838827]
[1726673824982,0.01797679,59608.0,59607.0,1.174358]
[1726673825193,0.01797679,59608.0,59607.0,1.33019874]
[1726673825466,0.00164,59612.0,59611.0,0.503262]
[1726673825702,0.00164,59612.0,59611.0,0.65910274]
[1726673825923,0.00164,59612.0,59611.0,0.99461074]
[1726673826138,0.00164,59612.0,59611.0,1.07248557]
[1726673826354,0.00164,59612.0,59611.0,0.73697757]
[1726673826808,0.00164,59612.0,59611.0,1.07248557]
[1726673827666,0.00164,59612.0,59611.0,0.73697757]
[1726673828768,0.00264,59612.0,59611.0,0.74897757]
[1726673831065,0.00264,59612.0,59611.0,0.91203124]
[1726673831294,0.0039353,59623.0,59622.0,0.40143857]
[1726673831777,0.01129921,59623.0,59622.0,1.07233057]
[1726673832451,0.01129921,59623.0,59622.0,0.73688457]
[1726673833740,0.01229921,59623.0,59622.0,0.75088457]
[1726673833973,0.01229921,59623.0,59622.0,1.08633057]
[1726673835320,0.0049353,59623.0,59622.0,1.42177657]
[1726673836031,0.0049353,59623.0,59622.0,1.71483024]
[1726673836259,0.0049353,59623.0,59622.0,1.73783024]
[1726673837376,0.0049353,59623.0,59622.0,1.70783024]
[1726673837567,0.0049353,59623.0,59622.0,1.17233057]
[1726673837568,0.0039353,59623.0,59622.0,1.17233057]
[1726673838076,0.0039353,59623.0,59622.0,1.18633057]
[1726673838299,0.0039353,59623.0,59622.0,1.52177657]
[1726673838522,0.0039353,59623.0,59622.0,1.18633057]
[1726673838929,0.0039353,59623.0,59622.0,1.17233057]
[1726673839152,0.0055753,59623.0,59622.0,1.17233057]
[1726673839819,0.0055753,59623.0,59622.0,0.83688457]
[1726673840288,0.0055753,59623.0,59622.0,0.50143857]
[1726673840798,0.01355057,59623.0,59622.0,0.50143857]
[1726673841035,0.0055753,59623.0,59622.0,0.50143857]
[1726673841280,0.01355057,59623.0,59619.0,0.0498597]
[1726673841529,0.0055753,59623.0,59622.0,0.014]
[1726673842022,0.0135233,59623.0,59622.0,0.181723]